bitfinex-derivatives/quotes_ETHF0:USTF0_20250501
["timestamp","ask_amount","ask_price","bid_price","bid_amount"]
[1746112938681,2.9635,1865.8,1865.7,4.2793]
[1746112939588,8.9807,1866.3,1866.2,1.07121]
[1746112939589,3.1047,1866.3,1866.2,1.07121]
[1746112939987,3.2078,1866.4,1866.3,1.07115]
[1746112940584,3.2078,1866.4,1865.9,5.88622]
[1746112940790,1.07119,1866.3,1866.1,1.07123]
[1746112940987,2.9914,1866.3,1866.2,1.07121]
[1746112941489,4.06255,1866.3,1866.2,1.07121]
[1746112941789,1.07131,1866.1,1866.0,1.07131]
[1746112941988,3.2078,1866.2,1865.7,5.88655]
[1746112942190,4.06893,1866.0,1865.7,2.67875]
[1746112942691,2.9976,1866.0,1865.9,1.07138]
[1746112947093,6.2054,1866.0,1865.7,1.07148]
[1746112947288,1.0715,1865.7,1865.4,3.2078]
[1746112947593,2.862,1865.6,1865.5,1.07159]
[1746112947891,5.876,1865.9,1865.8,1.07144]
[1746112948091,2.8499,1865.9,1865.8,1.07144]
[1746112948393,2.8499,1865.9,1865.8,4.27924]
[1746112948593,2.8499,1865.9,1865.8,1.07144]
[1746112950188,1.07144,1865.8,1865.7,1.07145]
[1746112950384,1.0715,1865.7,1865.6,1.07151]
[1746112950590,1.07149,1865.8,1865.7,1.0715]
[1746112950790,1.0715,1865.7,1865.6,1.07151]
[1746112951098,11.46017,1866.0,1865.4,2.67916]
[1746112951296,1.07149,1865.8,1865.4,2.67916]
[1746112951497,1.07142,1865.9,1865.8,1.07144]
[1746112951697,1.07154,1865.7,1865.6,1.07154]
[1746112952494,4.27934,1865.7,1865.6,1.07154]
[1746112953195,1.07161,1865.6,1865.5,1.07159]
[1746112953497,3.94441,1865.6,1865.5,1.07159]
[1746112954098,2.8728,1865.6,1865.5,1.07159]
[1746112954499,3.94435,1865.6,1865.5,1.07159]
[1746112954697,1.07164,1865.5,1865.4,1.07163]
[1746112954899,3.9444,1865.6,1865.5,1.07161]
[1746112955095,2.8728,1865.6,1865.5,1.07161]
[1746112957797,2.67726,1866.8,1866.3,1.07118]
[1746112958004,1.07138,1866.0,1865.9,3.2078]
[1746112958202,1.07142,1865.9,1865.7,1.07149]
[1746112958403,1.07137,1866.0,1865.8,1.07144]
[1746112958603,1.07137,1866.0,1865.7,1.07146]
[1746112958804,1.07137,1866.0,1865.8,1.07144]
[1746112958998,1.07137,1866.0,1865.6,11.5847]
[1746112959199,5.60265,1866.2,1865.7,1.0715]
[1746112959400,1.07139,1865.9,1865.7,1.0715]
[1746112959595,1.07144,1865.8,1865.7,1.0715]
[1746112959801,5.88599,1866.1,1865.7,1.07149]
[1746112960002,1.07144,1865.8,1865.6,12.65621]
[1746112960205,5.88599,1866.1,1865.7,1.0715]
[1746112961007,1.07144,1865.8,1865.6,12.65621]
[1746112961207,1.07144,1865.8,1865.6,9.61231]
[1746112961410,1.07142,1865.9,1865.7,1.0715]
[1746112961707,5.88599,1866.1,1865.7,1.07146]
[1746112961908,1.07144,1865.8,1865.7,1.07146]
[1746112962108,2.67834,1866.0,1865.6,4.27932]
[1746112962309,2.67833,1866.0,1865.6,4.27932]
[1746112962811,9.0838,1866.1,1865.6,3.2078]
[1746112963006,1.07132,1866.0,1865.9,4.27914]
[1746112963305,1.0715,1865.7,1865.6,3.2078]
[1746112963711,1.07149,1865.8,1865.6,3.2078]
[1746112963911,1.07149,1865.8,1865.7,1.0715]
[1746112964413,1.0715,1865.7,1865.6,4.27931]
[1746112964606,1.0715,1865.7,1865.6,3.2078]
[1746112964911,2.68484252,1865.9,1865.4,5.9679]
[1746112964912,2.67871,1865.8,1865.4,3.2078]
[1746112965106,2.67871,1865.8,1865.3,46.133]
[1746112965107,3.2078,1865.8,1865.3,1.0]
[1746112965305,1.0719,1865.1,1865.0,1.07188]
[1746112965506,1.0719,1865.0,1864.9,4.27971]
[1746112965705,1.07189,1865.1,1865.0,1.07188]
[1746112966107,4.08492,1865.2,1865.1,1.07184]
[1746112966305,4.08492,1865.2,1865.1,4.27964]
[1746112966507,3.0131,1865.2,1865.1,4.27964]
[1746112966708,9.0838,1865.6,1865.1,3.2078]
[1746112966915,4.08469,1865.6,1865.5,1.07161]
[1746112967107,3.0131,1865.6,1865.5,4.27941]
[1746112967707,5.9497,1865.6,1865.5,4.27941]
[1746112967907,2.9366,1865.6,1865.5,4.27941]
[1746112968108,4.00815,1865.6,1865.5,4.27941]
[1746112968303,4.00815,1865.6,1865.5,3.2078]
[1746112969113,4.00815,1865.6,1865.5,4.27941]
[1746112969714,2.9366,1865.6,1865.5,4.27941]
[1746112970411,2.85905252,1865.9,1865.8,1.07144]
[1746112970707,3.93043252,1865.9,1865.8,1.07144]
[1746112970913,1.07144,1865.8,1865.7,4.27926]
[1746112971108,3.99954,1865.8,1865.7,4.27926]
[1746112971415,2.9281,1865.8,1865.7,4.27926]
[1746112972410,3.99954,1865.8,1865.7,4.27926]
[1746112972910,5.60673,1865.8,1865.5,4.27937]
[1746112973110,5.8517,1865.8,1865.5,3.2078]
[1746112973314,1.07154,1865.7,1865.6,1.07155]
[1746112973608,3.9609,1865.7,1865.6,1.07155]
[1746112973808,2.8894,1865.7,1865.5,4.27937]
[1746112974016,1.07155,1865.6,1865.5,3.2078]
[1746112975716,1.07169,1865.4,1865.3,4.27949]
[1746112977014,1.07164,1865.5,1865.4,1.07163]
[1746112977217,2.8894,1865.7,1865.3,3.2078]
[1746112977417,1.07163,1865.5,1865.4,1.07163]
[1746112978119,1.07167,1865.4,1865.3,4.27951]
[1746112978411,3.93397,1865.4,1865.3,4.27951]
[1746112978616,2.8623,1865.4,1865.3,4.27951]
[1746112978915,3.93397,1865.4,1865.3,4.27951]
[1746112980919,2.8623,1865.4,1865.3,4.27951]
[1746112981123,2.8623,1865.4,1865.3,7.37481]
[1746112981412,12.0074,1865.8,1865.3,8.98238]
[1746112981620,1.07157,1865.6,1865.5,4.27937]
[1746112982020,1.07157,1865.6,1865.5,3.2078]
[1746112982217,1.07167,1865.4,1865.3,3.2078]
[1746112982423,1.07173,1865.3,1865.2,3.2078]
[1746112982614,4.14203,1865.3,1865.2,3.2078]
[1746112983119,1.07196,1864.9,1864.8,6.1123]
[1746112983417,2.67976,1865.0,1864.6,4.16738]
[1746112983622,1.07207,1864.7,1864.6,4.27988]
[1746112983822,1.07207,1864.7,1864.6,3.2078]
[1746112984119,1.07207,1864.7,1864.6,4.27993]
[1746112984314,1.07207,1864.8,1864.7,1.07207]
[1746112984518,2.8132,1864.9,1864.6,3.2078]
[1746112984721,1.07204,1864.8,1864.7,1.07206]
[1746112985318,1.07207,1864.7,1864.6,3.2078]
[1746112985514,1.07214,1864.6,1864.5,1.07216]
[1746112985819,1.07219,1864.5,1864.4,4.28]
[1746112986320,1.07209,1864.7,1864.6,1.0721]
[1746112986521,1.07219,1864.5,1864.4,7.21059]
[1746112986722,1.07219,1864.5,1864.4,4.27999]
[1746112987120,1.07219,1864.5,1864.4,3.2078]
[1746112987326,1.07224,1864.4,1864.3,40.8]
[1746112987621,1.0723,1864.3,1864.2,6.93913928]
[1746112987815,3.9709,1864.3,1864.2,6.93913928]
[1746112989120,3.9709,1864.3,1864.0,3.2078]
[1746112989121,1.07242,1864.1,1864.0,3.2078]
[1746112989419,2.8986,1864.3,1864.0,3.2078]
[1746112989420,1.07241,1864.2,1864.1,1.0724]
[1746112989617,1.07241,1864.2,1864.0,4.28023]
[1746112989826,1.07242,1864.1,1864.0,4.28023]
[1746112990016,2.68105,1864.1,1863.8,3.2078]
[1746112990322,1.07262,1863.8,1863.7,1.07263]
[1746112991717,2.68141,1863.9,1863.6,3.2078]
[1746112992019,1.07278,1863.5,1863.4,1.07278]
[1746112992225,1.07274,1863.6,1863.5,1.07275]
[1746112992617,2.6809,1864.2,1863.5,7.68191]
[1746112992818,1.07257,1863.9,1863.8,3.2078]
[1746112993118,1.07264,1863.8,1863.4,5.88985]
[1746112993314,1.0726,1863.8,1863.7,1.07265]
[1746112993616,1.07265,1863.7,1863.6,3.2078]
[1746112994418,1.07282,1863.4,1863.3,6.93913928]
[1746112994615,4.28062,1863.4,1863.3,6.93913928]
[1746112994821,4.28062,1863.4,1862.9,1.0731]
[1746112994822,1.07305,1863.0,1862.9,1.0731]
[1746112995022,5.88993,1863.4,1863.0,1.07304]
[1746112995216,2.9571,1863.3,1862.9,3.2078]
[1746112995427,1.07299,1863.1,1863.0,2.9174]
[1746112995625,1.07303,1863.1,1863.0,1.07302]
[1746112996020,1.07293,1863.2,1863.1,1.07296]
[1746112996429,3.2078,1863.4,1863.3,1.07288]
[1746112996628,1.07276,1863.6,1863.5,1.07275]
[1746112996926,4.02978,1863.7,1863.6,1.0727]
[1746112997229,1.07276,1863.5,1863.4,4.03958]
[1746112997731,1.07276,1863.5,1863.4,1.07278]
[1746112997929,1.07279,1863.5,1863.4,1.07278]
[1746112998129,4.17953,1863.6,1863.5,1.07276]
[1746112998326,1.07278,1863.5,1863.4,1.07277]
[1746112998523,4.17956,1863.5,1863.4,1.07277]
[1746112998725,3.1068,1863.5,1863.4,1.07277]
[1746112999133,1.07265,1863.7,1863.4,5.64885]
[1746112999327,4.0697,1863.6,1863.5,4.28056]
[1746112999522,3.2078,1863.9,1863.5,3.2078]
[1746112999731,4.06959,1863.8,1863.7,1.07265]
[1746112999932,2.997,1863.8,1863.7,1.07265]
[1746113000535,2.997,1863.8,1863.7,4.28045]
[1746113000735,5.33787557,1864.2,1864.0,1.07244]
[1746113001232,2.997,1864.1,1864.0,1.07244]
[1746113001537,4.06945,1864.1,1864.0,1.07247]
[1746113001724,2.997,1864.1,1864.0,1.07247]
[1746113001929,4.06942,1864.1,1864.0,1.07247]
[1746113002840,4.06942,1864.1,1863.6,5.282]
[1746113002841,2.997,1864.1,1863.6,5.282]
[1746113003035,1.0727,1863.7,1863.5,3.2078]
[1746113003232,3.0967,1863.6,1863.5,4.28052]
[1746113003540,3.0967,1863.6,1863.4,1.07281]
[1746113003735,5.77847,1863.6,1863.2,3.2078]
[1746113003942,1.07297,1863.2,1862.9,3.2078]
[1746113004141,3.0967,1863.1,1863.0,1.07305]
[1746113004542,1.07289,1863.3,1863.2,1.07292]
[1746113004935,1.07295,1863.2,1863.1,1.07297]
[1746113005231,4.16963,1863.2,1863.1,1.07299]
[1746113005639,1.07299,1863.1,1863.0,7.34805]
[1746113005838,3.94359,1863.1,1863.0,3.2078]
[1746113006047,3.94363,1863.1,1862.9,1.07307]
[1746113006243,2.8706,1863.1,1862.9,1.07307]
[1746113006542,1.07311,1862.9,1862.8,3.2078]
[1746113006848,1.07311,1862.9,1862.7,9.56297]
[1746113006849,1.07313,1862.9,1862.7,9.56297]
[1746113007146,2.8706,1862.8,1862.7,9.56297]
[1746113007344,2.68238,1863.2,1862.7,3.2078]
[1746113007639,1.07305,1863.0,1862.9,1.07309]
[1746113007839,2.8706,1863.1,1862.9,1.07306]
[1746113008145,3.94364,1863.1,1862.9,1.07306]
[1746113008347,2.8706,1863.1,1863.0,4.28085]
[1746113008543,3.89749,1863.3,1863.0,3.2078]
[1746113008742,2.9232,1863.2,1863.1,1.07294]
[1746113009048,3.99613,1863.2,1863.1,1.07294]
[1746113009250,2.9232,1863.2,1863.1,1.07294]
[1746113009752,5.282,1863.6,1863.3,1.07288]
[1746113010046,2.9232,1863.4,1863.3,1.07283]
[1746113010248,2.9232,1863.4,1863.3,4.28063]
[1746113011246,6.2913,1863.7,1863.3,10.88991]
[1746113011450,3.2078,1863.7,1863.6,1.0727]
[1746113012043,4.28045,1863.7,1863.3,5.88991]
[1746113012250,1.07265,1863.7,1863.6,1.0727]
[1746113012450,3.0796,1863.8,1863.3,5.88991]
[1746113012639,3.0796,1863.6,1863.5,1.07276]
[1746113013451,2.8356,1863.9,1863.8,1.07259]
[1746113014253,1.0726,1863.8,1863.5,5.8897]
[1746113014451,1.07265,1863.7,1863.6,1.07266]
[1746113014753,1.07266,1863.7,1863.6,1.07267]
[1746113015151,3.91253,1863.8,1863.7,1.07265]
[1746113015352,6.0434,1863.9,1863.4,40.8]
[1746113015555,1.07269,1863.7,1863.6,1.0727]
[1746113015852,1.07269,1863.7,1863.6,1.07269]
[1746113016051,1.07272,1863.6,1863.5,1.07271]
[1746113016553,6.0434,1863.9,1863.8,1.07259]
[1746113016754,1.07262,1863.8,1863.7,1.07261]
[1746113016955,2.8356,1863.9,1863.5,3.2078]
[1746113017254,1.07271,1863.7,1863.6,1.07269]
[1746113019156,1.07272,1863.6,1863.5,1.07273]
[1746113019454,1.07283,1863.5,1863.4,1.0728]
[1746113019653,1.07275,1863.6,1863.5,1.07272]
[1746113020058,1.07272,1863.6,1863.5,1.07272]
[1746113020954,1.07269,1863.7,1863.6,1.07265]
[1746113021754,1.07283,1863.5,1863.4,1.0728]
[1746113022353,1.07277,1863.6,1863.5,1.07274]
[1746113023057,1.07281,1863.5,1863.4,1.07278]
[1746113023355,1.07283,1863.4,1863.3,4.28065]
[1746113023853,1.07277,1863.6,1863.5,1.07274]
[1746113024255,6.3326,1863.7,1863.6,1.07272]
[1746113024557,2.8356,1863.9,1863.6,3.2078]
[1746113024762,1.07262,1863.8,1863.7,1.07262]
[1746113025051,1.07277,1863.5,1863.4,4.28058]
[1746113025252,1.07283,1863.5,1863.4,1.07281]
[1746113025557,5.51699,1863.9,1863.4,5.88978]
[1746113025751,3.2078,1864.0,1863.4,3.2078]
[1746113025960,4.60633511,1864.1,1864.0,1.07249]
[1746113026254,3.53388511,1864.1,1864.0,1.07249]
[1746113026454,4.60631511,1864.1,1864.0,1.07249]
[1746113026844,1.07248,1864.0,1863.9,3.0056]
[1746113027052,1.07254,1863.9,1863.8,3.2078]
[1746113027248,1.07266,1863.7,1863.6,1.07267]
[1746113027445,1.07271,1863.7,1863.4,3.2078]
[1746113027650,3.0782,1863.6,1863.5,4.17827]
[1746113027859,1.07264,1863.8,1863.7,1.07266]
[1746113028060,4.15084,1863.8,1863.7,1.07266]
[1746113028558,1.07266,1863.7,1863.6,4.28047]
[1746113028852,4.15086,1863.7,1863.6,3.2078]
[1746113029058,1.07283,1863.4,1863.3,10.39175]
[1746113029255,1.07282,1863.5,1863.3,10.39175]
[1746113029452,3.0782,1863.4,1863.3,10.39175]
[1746113029959,4.15103,1863.4,1863.3,10.39175]
[1746113030258,4.15103,1863.4,1863.3,9.3189]
[1746113030558,4.15103,1863.4,1863.3,3.2078]
[1746113030760,3.0782,1863.4,1863.1,48.09459]
[1746113030947,3.0782,1863.4,1863.2,1.07293]
[1746113031152,4.15107,1863.4,1863.2,1.07293]
[1746113031357,1.07289,1863.3,1863.2,1.07293]
[1746113031555,3.1608,1863.3,1863.2,1.07293]
[1746113031759,1.07283,1863.4,1863.3,1.07285]
[1746113031955,1.07289,1863.3,1863.2,4.0867]
[1746113032151,4.23369,1863.3,1863.2,1.0729]
[1746113032747,3.1608,1863.3,1863.2,1.0729]
[1746113033661,4.23369,1863.3,1863.2,1.0729]
[1746113033859,3.1608,1863.3,1863.2,1.0729]
[1746113034055,3.2078,1863.6,1863.4,1.07278]
[1746113034256,4.25449,1863.5,1863.4,1.07278]
[1746113034962,1.07285,1863.4,1863.3,1.07285]
[1746113035162,6.3895,1863.4,1863.1,40.8]
[1746113035461,1.07293,1863.3,1863.2,1.07293]
[1746113035656,3.045,1863.3,1863.2,1.07293]
[1746113035965,1.07284,1863.4,1863.3,1.07284]
[1746113036165,3.045,1863.4,1863.3,1.07284]
[1746113036666,4.11783,1863.4,1863.3,1.07284]
[1746113036857,3.045,1863.4,1863.3,1.07284]
[1746113037865,4.11783,1863.4,1863.3,1.07284]
[1746113038058,3.045,1863.4,1863.3,1.07284]
[1746113038263,4.11783,1863.4,1863.3,1.07284]
[1746113039758,3.045,1863.4,1863.1,3.2078]
[1746113039959,6.74168511,1863.7,1863.1,8.2078]
[1746113040160,2.37648511,1863.7,1863.6,1.07271]
[1746113040357,2.37648511,1863.7,1863.6,48.09471]
[1746113040560,2.37648511,1863.7,1863.6,62.28591]
[1746113040770,0.19839511,1863.7,1863.6,62.28591]
[1746113041065,0.69390563,1863.8,1863.7,1.39266]
[1746113041267,5.63e-06,1863.8,1863.7,7.51566]
[1746113041567,5.63e-06,1863.8,1863.7,12.75239955]
[1746113041764,5.63e-06,1863.8,1863.7,53.55239955]
[1746113041966,5.63e-06,1863.8,1863.7,54.21239955]
[1746113042259,4.32151305,1864.0,1863.9,1.07254]
[1746113042460,8.89645928,1864.2,1864.1,1.07243]
[1746113042666,5.50969928,1864.2,1864.1,9.50223]
[1746113042860,4.36436928,1864.2,1864.1,14.50223]
[1746113043060,4.36436928,1864.2,1864.1,17.41763]
[1746113043966,4.36436928,1864.2,1864.1,58.21763]
[1746113045165,1.90687928,1864.2,1864.1,58.21763]
[1746113045669,1.90687928,1864.2,1864.1,56.26843]
[1746113045969,1.90687928,1864.2,1864.1,47.99563]
[1746113046264,1.90687928,1864.2,1864.1,53.21563]
[1746113046763,0.72780928,1864.2,1864.1,58.21563]
[1746113047068,3.063,1864.8,1864.7,1.07204]
[1746113047466,9.13502,1864.8,1864.6,1.07209]
[1746113047769,3.063,1864.8,1864.5,1.07219]
[1746113047968,1.07215,1864.6,1864.3,3.2078]
[1746113048168,3.0053,1864.5,1864.4,1.07225]
[1746113049263,1.07236,1864.2,1864.0,4.28026]
[1746113049465,8.80196,1864.4,1863.7,5.88942]
[1746113049666,3.0053,1864.3,1863.7,3.2078]
[1746113049868,1.07245,1864.1,1863.9,1.07249]
[1746113050066,3.0053,1864.0,1863.9,1.07249]
[1746113050262,3.0053,1864.0,1863.8,1.07256]
[1746113050462,1.07258,1863.9,1863.7,3.2078]
[1746113050674,3.0053,1863.8,1863.7,1.07265]
[1746113050865,3.0053,1863.8,1863.7,4.28045]
[1746113051065,4.0779,1863.8,1863.6,1.07268]
[1746113051261,3.0053,1863.8,1863.7,4.28045]
[1746113052076,3.163,1864.2,1864.1,1.07242]
[1746113052376,2.982,1864.2,1864.1,1.07242]
[1746113052574,7.4405,1864.7,1864.3,2.68074]
[1746113052762,1.07221,1864.5,1864.4,1.07224]
[1746113052968,1.07223,1864.5,1864.3,1.07226]
[1746113053273,2.982,1864.4,1864.3,4.28006]
[1746113053571,2.982,1864.4,1864.3,1.07231]
[1746113054278,2.982,1864.4,1864.3,4.28011]
[1746113054776,2.982,1864.4,1864.3,7.39961]
[1746113054980,6.3684,1864.7,1864.6,1.07213]
[1746113055368,3.2054,1864.7,1864.6,1.07213]
[1746113055568,3.2054,1864.7,1864.3,3.2078]
[1746113055869,1.07218,1864.6,1864.4,1.07221]
[1746113056070,5.88563,1864.7,1864.3,3.2078]
[1746113056264,3.1858,1864.5,1864.2,1.07233]
[1746113056469,3.1858,1864.5,1864.4,3.2078]
[1746113056671,4.25799,1864.5,1864.4,4.28005]
[1746113056974,4.25799,1864.5,1864.4,1.07225]
[1746113057175,3.1858,1864.5,1864.3,3.2078]
[1746113057375,1.07236,1864.3,1864.1,4.28018]
[1746113057576,6.0601,1864.2,1864.1,4.28022]
[1746113057780,7.13247,1864.2,1864.1,3.2078]
[1746113057979,1.07246,1864.1,1864.0,1.07248]
[1746113058175,5.57487,1864.1,1863.7,4.28042]
[1746113058377,8.7698,1864.1,1863.7,3.2078]
[1746113058675,1.07253,1864.0,1863.8,1.07257]
[1746113058876,2.8938,1863.9,1863.8,1.07257]
[1746113059080,2.8938,1863.9,1863.7,3.2078]
[1746113059776,2.8938,1863.9,1863.8,1.0726]
[1746113060077,3.96634,1863.9,1863.7,4.28041]
[1746113060276,3.96638,1863.9,1863.7,4.28041]
[1746113060578,2.8938,1863.9,1863.8,1.0726]
[1746113060976,1.0726,1863.8,1863.7,3.2078]
[1746113061172,3.96637,1863.9,1863.5,3.2078]
[1746113061378,2.8938,1863.9,1863.8,1.0726]
[1746113061574,3.96634,1863.9,1863.7,1.07262]
[1746113061779,1.0726,1863.8,1863.5,3.2078]
[1746113061978,1.0726,1863.8,1863.7,1.07265]
[1746113062185,1.07251,1864.0,1863.9,1.07254]
[1746113062478,1.07254,1863.9,1863.8,1.07256]
[1746113062681,6.94846,1864.1,1864.0,1.07248]
[1746113062987,9.0423,1864.2,1864.1,1.07242]
[1746113063183,3.1663,1864.2,1864.1,1.07242]
[1746113063583,1.07243,1864.1,1864.0,1.07242]
[1746113063884,4.23871,1864.2,1864.1,1.07242]
[1746113064280,6.94824,1864.5,1864.1,3.2078]
[1746113064580,10.02794,1864.5,1864.4,1.07225]
[1746113064779,3.0797,1864.5,1864.4,1.07225]
[1746113065979,4.15189,1864.5,1864.3,4.28008]
[1746113066183,1.07225,1864.4,1864.3,1.07228]
[1746113066386,4.15194,1864.5,1864.4,1.07225]
[1746113066586,4.15194,1864.5,1864.3,4.28008]
[1746113066886,1.07225,1864.4,1864.3,4.28006]
[1746113067388,4.15192,1864.5,1864.4,1.07225]
[1746113067688,4.15194,1864.5,1864.3,4.28008]
[1746113067987,4.15194,1864.5,1864.4,1.07225]
[1746113068181,1.07225,1864.4,1864.3,4.28007]
[1746113068581,4.15191,1864.5,1864.4,1.07225]
[1746113068886,3.0797,1864.5,1864.4,1.07225]
[1746113069982,5.876,1864.8,1864.3,3.2078]
[1746113070175,3.0876,1864.8,1864.7,1.07208]
[1746113070387,3.1788,1865.0,1864.9,1.07196]
[1746113070990,1.0718,1865.2,1864.9,1.07196]
[1746113071183,1.0718,1865.2,1865.1,1.07181]
[1746113071488,3.0876,1865.3,1865.2,1.07179]
[1746113072087,3.0876,1865.3,1864.8,46.68775]
[1746113072292,3.0876,1865.3,1865.0,1.07187]
[1746113072585,3.0876,1865.3,1864.8,40.8]
[1746113072786,1.07198,1865.1,1864.9,1.07202]
[1746113072985,1.07195,1865.1,1864.9,1.07203]
[1746113073174,1.07214,1864.8,1864.6,1.07221]
[1746113073383,4.07611,1864.7,1864.5,1.07227]
[1746113073585,3.0039,1864.7,1864.6,1.07224]
[1746113073986,1.0721,1864.9,1864.7,1.07216]
[1746113074186,1.07219,1864.7,1864.5,1.07229]
[1746113074389,8.55631,1864.8,1864.4,40.8]
[1746113074589,6.0882,1864.6,1864.2,3.2078]
[1746113074884,1.07231,1864.5,1864.3,1.07237]
[1746113075081,3.2078,1864.5,1864.2,40.8]
[1746113075284,4.04846,1864.4,1864.2,40.8]
[1746113075588,1.07242,1864.3,1864.1,1.07247]
[1746113075890,2.9761,1864.4,1864.0,3.2078]
[1746113076088,4.0485,1864.4,1864.2,1.07244]
[1746113076489,2.9761,1864.4,1864.3,1.07241]
[1746113077392,1.07241,1864.3,1864.1,1.07249]
[1746113077688,2.9605,1864.3,1864.2,1.07247]
[1746113077991,4.03294,1864.3,1864.0,3.2078]
[1746113078193,4.03294,1864.3,1864.1,1.07252]
[1746113078389,2.9605,1864.3,1864.2,1.07247]
[1746113078592,4.03295,1864.3,1864.1,1.0725]
[1746113078789,4.03292,1864.3,1864.2,1.07247]
[1746113079087,2.9605,1864.3,1864.2,1.07247]
[1746113079387,2.9605,1864.3,1864.0,3.2078]
[1746113079586,2.9605,1864.3,1864.2,1.07247]
[1746113080487,3.2078,1864.5,1864.4,1.07235]
[1746113080693,3.95265,1864.6,1864.5,1.07229]
[1746113080900,3.95266,1864.6,1864.3,3.2078]
[1746113081191,1.07231,1864.5,1864.4,1.07233]
[1746113081592,3.95268,1864.6,1864.4,1.07233]
[1746113081886,1.07235,1864.4,1864.3,1.07236]
[1746113082090,4.15184,1864.5,1864.4,1.07235]
[1746113082688,1.0724,1864.4,1864.1,3.2078]
[1746113082893,4.15193,1864.3,1864.2,1.07243]
[1746113083294,3.0795,1864.3,1864.2,1.07243]
[1746113083686,6.2873,1864.3,1863.8,40.8]
[1746113083888,3.2078,1864.0,1863.6,0.28458151]
[1746113084091,1.07273,1863.8,1863.7,1.07275]
[1746113084301,6.0342,1863.9,1863.7,1.07275]
[1746113084494,1.07273,1863.8,1863.7,1.07275]
[1746113084692,3.0777,1863.8,1863.7,1.07275]
[1746113084893,4.1504,1863.8,1863.7,1.07275]
[1746113085292,3.0777,1863.8,1863.7,1.07275]
[1746113085491,4.1504,1863.8,1863.7,1.07275]
[1746113085794,3.0777,1863.8,1863.7,1.07275]
[1746113086691,4.1504,1863.8,1863.7,1.07275]
[1746113086886,3.0777,1863.8,1863.7,1.07275]
[1746113087695,4.1504,1863.8,1863.7,1.07275]
[1746113087896,3.0777,1863.8,1863.7,1.07275]
[1746113088194,4.1504,1863.8,1863.7,1.07275]
[1746113088391,6.2855,1863.8,1863.5,40.8]
[1746113088597,4.11256,1863.7,1863.6,1.07277]
[1746113088798,7.13916,1863.7,1863.6,1.07277]
[1746113089398,6.0664,1863.7,1863.5,40.8]
[1746113089600,6.0664,1863.7,1863.5,41.87281]
[1746113089793,1.07281,1863.6,1863.5,41.87281]
[1746113089994,4.09941,1863.6,1863.5,41.87281]
[1746113090193,3.0266,1863.6,1863.5,41.87281]
[1746113091196,4.09941,1863.6,1863.5,41.87281]
[1746113091397,3.0266,1863.6,1863.5,41.87281]
[1746113092002,4.09941,1863.6,1863.5,41.87281]
[1746113092395,3.0266,1863.6,1863.5,41.87281]
[1746113098213,8.91645,1863.6,1863.1,6.3719]
[1746113098507,1.07297,1863.4,1863.1,6.3719]
[1746113098709,1.07293,1863.4,1863.1,50.3114]
[1746113099011,4.06377,1863.5,1863.4,1.07293]
[1746113100213,2.9909,1863.5,1863.4,1.07293]
[1746113100419,2.9909,1863.5,1863.1,3.2078]
[1746113100619,1.07293,1863.4,1863.3,1.07293]
[1746113101318,1.073,1863.3,1863.2,1.07299]
[1746113102019,1.07304,1863.2,1863.1,41.87306]
[1746113102217,1.07303,1863.3,1863.2,1.07301]
[1746113102417,1.07297,1863.4,1863.3,1.07296]
[1746113102716,4.28077,1863.4,1863.3,1.07296]
[1746113102920,3.2078,1863.4,1863.3,1.07296]
[1746113103120,4.28073,1863.4,1863.3,1.07296]
[1746113103322,1.07304,1863.3,1863.2,1.07302]
[1746113104024,4.28075,1863.4,1863.3,1.07298]
[1746113104214,4.28073,1863.4,1863.3,1.07298]
[1746113104417,4.06382,1863.5,1863.4,1.07293]
[1746113104619,7.16127,1863.7,1863.6,1.07281]
[1746113105020,1.07286,1863.6,1863.5,1.07283]
[1746113105926,1.07304,1863.3,1863.2,1.07301]
[1746113106120,3.2078,1863.3,1863.2,1.07301]
[1746113106519,4.1353,1863.5,1863.4,1.07293]
[1746113106717,3.0624,1863.5,1863.4,1.07293]
[1746113106918,5.876,1863.6,1863.5,1.07287]
[1746113107124,1.07278,1863.7,1863.6,1.07277]
[1746113107317,1.07285,1863.6,1863.5,1.07283]
[1746113107524,1.07287,1863.6,1863.5,1.07284]
[1746113108125,1.0728,1863.7,1863.6,1.07279]
[1746113109230,4.03604,1863.8,1863.7,1.07275]
[1746113109425,3.2078,1864.2,1863.7,3.2078]
[1746113109727,4.28029,1864.2,1863.8,8.5634]
[1746113109918,5.88898,1864.2,1863.7,3.2078]
[1746113110117,3.2078,1864.2,1863.7,5.88969]
[1746113110328,3.2078,1864.4,1863.8,5.88953]
[1746113110625,4.2802,1864.4,1864.2,1.07242]
[1746113110827,1.07255,1864.1,1864.0,1.07255]
[1746113111018,1.07251,1864.2,1864.0,1.07255]
[1746113111217,1.07251,1864.2,1863.8,3.2078]
[1746113111218,1.07264,1863.9,1863.4,2.68228]
[1746113111422,1.07267,1863.9,1863.5,8.87657]
[1746113111625,1.07267,1863.9,1863.8,1.0727]
[1746113112330,1.07272,1863.8,1863.7,1.07272]
[1746113112625,1.07277,1863.7,1863.6,1.07281]
[1746113112819,1.07279,1863.7,1863.6,1.07278]
[1746113113025,1.07283,1863.6,1863.5,1.07282]
[1746113113525,1.07281,1863.6,1863.5,1.07282]
[1746113114122,1.04517201,1863.6,1863.5,1.07282]
[1746113114327,5.0,1863.6,1863.1,40.8]